Workbook

Sheet 例題23a SO2水吸収
A1: 微分方程式数 | B1: 2 | F1: 定数 | K1: 元例題
A2: z= | B2: y= | C2: x= | F2: m= | G2: 30 | K2: 疋田 化学工学通論 p. 168 例題6.4
A3: 3.5 | B3: 0.006388876744 | C3: -8.056946132e-05 | F3: kya= | G3: 125 | H3: mol/m3-s | K3: 伊東 ベーシック分離工学 p.71 例題3.8
B4: y'= | C4: x'= | F4: kxa= | G4: 7003 | H4: mol/m3-s | K4: Henley, Seader, Roper: Separation Process Principles p. 255 Example 6.10
A5: 微分方程式→ | B5: =-(G3/G6)*(B3-G2*(G5*C3-B3)/(G5-G2)) -> -0.01146994178 | C5: =-(G4/G13)*((G5*C3-B3)/(G5-G2)-C3) -> -0.00025591124 | F5: D= | G5: =-G4/G3 -> -56.024 | M5: 疋田 化学工学通論 p. 168 例題6.4
F6: G= | G6: 62.5 | H6: mol/m2-s | M6: HG | N6: 0.5 | O6: m
A7: 積分区間z=[a, | B7: 0 | F7: yB= | G7: 0.1 | M7: kya=G/HG | N7: =G6/N6 -> 125
A8: b] | B8: 3.5 | F8: xB*= | G8: =G7/G2 -> 0.003333333333 | M8: HL | N8: 0.4 | O8: m
A9: 積分刻み幅Δz | B9: 0.1 | F9: yT= | G9: 0.01 | M9: kxa=L/HL | N9: =G13/N8 -> 7003.125
A10: 計算結果 | F10: xT= | G10: 0
A11: z [m] | B11: y | C11: x | D11: yi | E11: xi | F11: Lmin= | G11: =G6*(G7-G9)/(G8-G10) -> 1687.5 | H11: mol/m2-s
A12: 0 | B12: =G7 -> 0.1 | C12: =G14 -> 0.002008032129 | D12: =$G$2*($G$5*C12-B12)/($G$5-$G$2) -> 0.07410652561 | E12: =($G$5*C12-B12)/($G$5-$G$2) -> 0.00247021752 | F12: CL= | G12: 1.66
A13: 0.1 | B13: 0.09493124095 | C13: 0.001894940673 | D13: =$G$2*($G$5*C13-B13)/($G$5-$G$2) -> 0.07012928852 | E13: =($G$5*C13-B13)/($G$5-$G$2) -> 0.002337642951 | F13: L= | G13: =G12*G11 -> 2801.25 | H13: mol/m2-s
A14: 0.2 | B14: 0.09007615202 | C14: 0.001786616511 | D14: 0.06631970919 | E14: 0.002210656973 | F14: xB= | G14: =(G6/G13)*(G7-G9)+G10 -> 0.002008032129
A15: 0.3 | B15: 0.0854257261 | C15: 0.001682858681 | D15: 0.0626707201 | E15: 0.002089024003
A16: 0.4 | B16: 0.08097133574 | C16: 0.001583474693 | D16: 0.05917555169 | E16: 0.00197251839
A17: 0.5 | B17: 0.07670471721 | C17: 0.00148828017 | D17: 0.05582771974 | E17: 0.001860923991
A18: 0.6 | B18: 0.07261795511 | C18: 0.001397098508 | D18: 0.0526210134 | E18: 0.00175403378
A19: 0.7 | B19: 0.06870346771 | C19: 0.001309760547 | D19: 0.0495494836 | E19: 0.001651649453
A20: 0.8 | B20: 0.06495399289 | C20: 0.001226104259 | D20: 0.04660743207 | E20: 0.001553581069
A21: 0.9 | B21: 0.06136257465 | C21: 0.001145974446 | D21: 0.04378940074 | E21: 0.001459646691
A22: 1 | B22: 0.05792255023 | C22: 0.00106922245 | D22: 0.04109016163 | E22: 0.001369672054
A23: 1.1 | B23: 0.05462753772 | C23: 0.0009957058839 | D23: 0.03850470711 | E23: 0.001283490237
A24: 1.2 | B24: 0.05147142424 | C24: 0.0009252883587 | D24: 0.03602824069 | E24: 0.001200941356
A25: 1.3 | B25: 0.0484483546 | C25: 0.0008578392369 | D25: 0.03365616805 | E25: 0.001121872268
A26: 1.4 | B26: 0.04555272042 | C26: 0.0007932333873 | D26: 0.03138408852 | E26: 0.001046136284
A27: 1.5 | B27: 0.04277914975 | C27: 0.0007313509538 | D27: 0.02920778698 | E27: 0.0009735928994
A28: 1.6 | B28: 0.04012249708 | C28: 0.0006720771325 | D28: 0.02712322597 | E28: 0.0009041075322
A29: 1.7 | B29: 0.03757783381 | C29: 0.0006153019592 | D29: 0.02512653821 | E29: 0.0008375512738
A30: 1.8 | B30: 0.03514043911 | C30: 0.0005609201052 | D30: 0.02321401949 | E30: 0.0007738006496
A31: 1.9 | B31: 0.03280579114 | C31: 0.0005088306815 | D31: =$G$2*($G$5*C31-B31)/($G$5-$G$2) -> 0.0213821217 | E31: =($G$5*C31-B31)/($G$5-$G$2) -> 0.0007127373901
A32: 2 | B32: 0.03056955869 | C32: 0.0004589370524 | D32: =$G$2*($G$5*C32-B32)/($G$5-$G$2) -> 0.01962744633 | E32: =($G$5*C32-B32)/($G$5-$G$2) -> 0.0006542482111
A33: 2.1 | B33: 0.0284275931 | C33: 0.0004111466555 | D33: =$G$2*($G$5*C33-B33)/($G$5-$G$2) -> 0.01794673812 | E33: =($G$5*C33-B33)/($G$5-$G$2) -> 0.000598224604
A34: 2.2 | B34: 0.02637592063 | C34: 0.0003653708307 | D34: =$G$2*($G$5*C34-B34)/($G$5-$G$2) -> 0.01633687903 | E34: =($G$5*C34-B34)/($G$5-$G$2) -> 0.0005445626343
A35: 2.3 | B35: 0.02441073503 | C35: 0.0003215246549 | D35: 0.01479488246 | E35: 0.0004931627488
A36: 2.4 | B36: 0.02252839051 | C36: 0.0002795267851 | D36: 0.01331788772 | E36: 0.0004439295908
A37: 2.5 | B37: 0.02072539495 | C37: 0.0002392993072 | D37: 0.0119031547 | E37: 0.0003967718234
A38: 2.6 | B38: 0.01899840345 | C38: 0.0002007675915 | D38: 0.0105480588 | E38: 0.0003516019599
A39: 2.7 | B39: 0.01734421212 | C39: 0.0001638601544 | D39: 0.009250086048 | E39: 0.0003083362016
A40: 2.8 | B40: 0.01575975211 | C40: 0.0001285085253 | D40: 0.008006828465 | E40: 0.0002668942822
A41: 2.9 | B41: 0.01424208394 | C41: 9.464712041e-05 | D41: 0.006815979567 | E41: 0.0002271993189
A42: 3 | B42: 0.01278839205 | C42: 6.221312018e-05 | D42: =$G$2*($G$5*C42-B42)/($G$5-$G$2) -> 0.005675330103 | E42: =($G$5*C42-B42)/($G$5-$G$2) -> 0.0001891776701
A43: 3.1 | B43: 0.01139597956 | C43: 3.114635338e-05 | D43: 0.004582763947 | E43: 0.0001527587982
A44: 3.2 | B44: 0.01006226328 | C44: 1.389185198e-06 | D44: 0.003536254182 | E44: 0.0001178751394

Sheet COCO_23a結果整理
A1: <COCO_23a_AbsorpSO2.fsd>計算結果 | J1: 0.1 | K1: 0.00205512
A2: mole fraction | J2: 0.0639367 | K2: 0.00205512
A3: Stage | B3: x | C3: y | D3: 操作線x | E3: y | J3: 0.0639367 | K3: 0.00123657
A4: feed | B4: 0 | J4: 0.0385741 | K4: 0.00123657
A5: 1 | B5: 0.00026075 | C5: 0.00802696 | D5: 0 | E5: 0.00802696 | J5: 0.0385741 | K5: 0.00065786
A6: 2 | B6: 0.00065786 | C6: 0.0203644 | D6: 0.00026075 | E6: 0.0203644 | J6: 0.0203644 | K6: 0.00065786
A7: 3 | B7: 0.00123657 | C7: 0.0385741 | D7: 0.00065786 | E7: 0.0385741 | J7: 0.0203644 | K7: 0.00026075
A8: 4 | B8: 0.00205512 | C8: 0.0639367 | D8: 0.00123657 | E8: 0.0639367 | J8: 0.00802696 | K8: 0.00026075
A9: feed | C9: 0.1 | D9: 0.00205512 | E9: 0.1 | J9: 0.00802696 | K9: 0
A14: 段 | B14: x | C14: 段 | D14: y
A15: 0.5 | B15: 0 | C15: 0.5 | D15: 0.00802696
A16: 1.5 | B16: 0.00026075 | C16: 1.5 | D16: 0.0203644
A17: 2.5 | B17: 0.00065786 | C17: 2.5 | D17: 0.0385741
A18: 3.5 | B18: 0.00123657 | C18: 3.5 | D18: 0.0639367
A19: 4.5 | B19: 0.00205512 | C19: 4.5 | D19: 0.1

Sheet SO2水平衡
A1: SO2の水に対する溶解度 | E1: 20℃ | P1: m= | Q1: 30
A2: 疋田 p. 163 | D2: COCO EOS/Predictive SRK
A3: x | B3: y | D3: x | E3: y | Q3: 0 | R3: 0
A4: 0 | B4: 0 | D4: 6.1e-05 | E4: 0.00189 | Q4: 0.003 | R4: =Q4*Q1 -> 0.09
A5: 0.000141 | B5: 0.00158 | D5: 0.000123 | E5: 0.00377
A6: 0.000281 | B6: 0.00422 | D6: 0.000306 | E6: 0.00938
A7: 0.000562 | B7: 0.0112 | D7: 0.0006077 | E7: 0.01859
A8: 0.000843 | B8: 0.0186 | D8: 0.001196 | E8: 0.03653
A9: 0.00141 | B9: 0.0344 | D9: 0.00176 | E9: 0.0538
A10: 0.00196 | B10: 0.0513 | D10: 0.00285 | E10: 0.0867
A11: 0.00281 | B11: 0.0776 | D11: 0.00437 | E11: 0.132
A12: 0.0042 | B12: 0.12
A13: 0.00698 | B13: 0.212
